bitfinex/quotes_SOLUSD_20241016
["timestamp","ask_amount","ask_price","bid_price","bid_amount"]
[1729043759137,6.4587,154.83,154.76,6.4614]
[1729043759443,26.1343,154.84,154.75,27.67665063]
[1729043759639,6.4591,154.82,154.75,34.13845063]
[1729043761447,6.4591,154.82,154.75,22.6159]
[1729043762835,26.1343,154.84,154.76,35.29943463]
[1729043763148,20.1,154.88,154.78,27.67435063]
[1729043763736,6.4579,154.85,154.78,34.13505063]
[1729043765056,20.1,154.88,154.78,22.6125]
[1729043765257,6.4587,154.83,154.78,22.6125]
[1729043765451,6.4583,154.84,154.78,22.6125]
[1729043765631,6.458,154.85,154.8,6.4599]
[1729043767853,21.6953,154.89,154.81,16.1485]
[1729043768046,22.0172,154.89,154.83,6.4582]
[1729043769133,6.4557,154.9,154.85,6.4578]
[1729043769334,6.4557,154.9,154.84,6.4582]
[1729043769959,6.4557,154.9,154.85,6.4574]
[1729043770140,6.4553,154.91,154.86,6.4574]
[1729043770540,6.4562,154.89,154.84,6.458]
[1729043770952,6.4567,154.88,154.83,16.1457]
[1729043771373,6.4567,154.88,154.83,22.6043]
[1729043772038,6.2343,154.93,154.83,16.1457]
[1729043772369,6.4575,154.86,154.82,23.776884]
[1729043772664,6.457,154.87,154.82,6.459]
[1729043773363,6.4576,154.86,154.81,6.4594]
[1729043773556,15.2961,154.89,154.8,23.776884]
[1729043773759,6.4561,154.9,154.85,6.4578]
[1729043774145,6.4567,154.88,154.83,46.381284]
[1729043774739,6.4573,154.87,154.83,16.1458]
[1729043776741,6.4573,154.87,154.77,6.4609]
[1729043776742,6.4591,154.82,154.77,6.4609]
[1729043776941,16.1426,154.87,154.76,16.1537]
[1729043777154,16.1426,154.87,154.78,16.1512]
[1729043777341,6.459,154.83,154.78,22.6118]
[1729043777562,6.4583,154.84,154.79,6.4602]
[1729043777866,6.4587,154.83,154.79,6.4602]
[1729043778763,0.1,154.85,154.76,20.0]
[1729043778950,6.459,154.83,154.78,6.4604]
[1729043780263,6.4591,154.82,154.79,0.354609]
[1729043780563,6.457,154.87,154.82,23.776884]
[1729043780744,16.139,154.91,154.81,23.776884]
[1729043782266,20.0,154.9,154.81,23.776884]
[1729043782564,6.4569,154.88,154.83,6.4586]
[1729043785567,26.4554,154.91,154.85,6.4578]
[1729043785745,6.4557,154.9,154.85,6.4578]
[1729043788071,6.4562,154.89,154.84,30.235084]
[1729043789766,6.4566,154.88,154.84,30.235084]
[1729043789951,6.4562,154.89,154.84,30.235084]
[1729043793246,21.4649,154.92,154.84,23.776884]
[1729043793448,6.4562,154.89,154.85,6.4575]
[1729043797087,20.0,154.91,154.83,16.1458]
[1729043797375,6.4579,154.85,154.81,6.4594]
[1729043807184,6.457,154.87,154.82,6.4588]
[1729043811587,6.4574,154.86,154.82,6.4588]
[1729043815077,6.4579,154.85,154.81,6.4594]
[1729043815276,20.0,154.89,154.81,6.4594]
[1729043815477,6.4565,154.89,154.84,6.4579]
[1729043815685,28.20570967,154.92,154.83,11.52255063]
[1729043815686,6.4554,154.91,154.86,6.4573]
[1729043815890,6.456,154.9,154.85,17.98015063]
[1729043820279,6.74080967,154.92,154.87,11.52255063]
[1729043820594,20.0,154.92,154.87,34.12105063]
[1729043820897,26.455,154.92,154.87,34.12105063]
[1729043825210,36.2348,154.95,154.85,6.4577]
[1729043825380,6.4561,154.9,154.85,6.4577]
[1729043827491,6.4553,154.91,154.86,30.234084]
[1729043827806,6.455,154.92,154.88,6.4565]
[1729043828017,6.4542,154.94,154.89,46.372884]
[1729043831003,6.4553,154.92,154.89,23.776884]
[1729043831316,6.4541,154.94,154.9,6.4557]
[1729043831486,26.4537,154.95,154.9,6.4557]
[1729043831710,26.4537,154.95,154.91,6.4552]
[1729043833613,26.4537,154.95,154.9,6.4556]
[1729043835719,6.4549,154.92,154.88,6.4564]
[1729043836033,6.4549,154.92,154.86,27.66565063]
[1729043836237,6.4546,154.93,154.88,6.4565]
[1729043836407,6.4553,154.92,154.87,6.4568]
[1729043839710,20.0,154.95,154.88,35.29943463]
[1729043839948,6.4542,154.94,154.89,6.4557]
[1729043841716,20.0,154.95,154.88,51.44003463]
[1729043841914,6.4556,154.91,154.87,23.776884]
[1729043842532,6.4556,154.91,154.87,30.233784]
[1729043843023,6.4549,154.92,154.87,30.233784]
[1729043843733,6.4541,154.94,154.88,16.1409]
[1729043844114,26.5408,154.95,154.88,16.1409]
[1729043844315,6.4546,154.93,154.88,22.5971]
[1729043849238,26.5408,154.95,154.88,16.1409]
[1729043849533,20.0,154.95,154.9,27.66115063]
[1729043849744,22.4519,154.99,154.92,11.52255063]
[1729043849745,6.3215,154.99,154.92,11.52255063]
[1729043849937,6.3215,154.99,154.95,6.4533]
[1729043850242,12.7735,154.99,154.94,22.5883]
[1729043851933,6.3215,154.99,154.95,6.4534]
[1729043852118,6.4508,155.02,154.96,23.776884]
[1729043852324,6.4508,155.02,154.97,11.52255063]
[1729043852632,6.3215,155.03,154.97,11.52255063]
[1729043852633,12.7719,155.03,154.98,6.4524]
[1729043853131,12.7719,155.03,154.97,11.52255063]
[1729043853132,6.4507,155.02,154.97,6.4528]
[1729043853547,6.4515,155.01,154.96,46.362084]
[1729043854361,6.452,154.99,154.94,6.454]
[1729043854515,6.3215,155.03,154.94,23.776884]
[1729043854816,6.4521,154.99,154.94,30.230984]
[1729043855432,6.4529,154.97,154.93,16.1363]
[1729043861942,20.0,155.01,154.94,23.776884]
[1729043862146,6.3215,155.03,154.95,11.52255063]
[1729043862345,6.4512,155.01,154.96,6.4532]
[1729043863248,6.4508,155.02,154.97,6.4528]
[1729043863447,6.4512,155.01,154.97,6.4528]
[1729043863751,6.4512,155.01,154.95,27.65605063]
[1729043863931,6.4512,155.01,154.96,6.4531]
[1729043864135,6.3215,155.03,154.95,16.1335]
[1729043864450,6.4519,155.0,154.95,6.4535]
[1729043865137,6.4519,155.0,154.93,35.29943463]
[1729043865336,6.4519,155.0,154.96,6.4532]
[1729043870452,6.4519,155.0,154.95,22.5877]
[1729043873951,6.4519,155.0,154.95,16.1342]
[1729043874137,6.4519,155.0,154.96,6.4532]
[1729043874754,6.4509,155.02,154.97,6.4527]
[1729043882143,6.4509,155.02,154.97,17.97525063]
[1729043883288,6.4509,155.02,154.98,6.4523]
[1729043884444,6.4509,155.02,154.97,30.229584]
[1729043885468,6.4509,155.02,154.97,23.776884]
[1729043885640,6.4504,155.03,154.98,6.4523]
[1729043889951,6.4498,155.05,155.01,6.451]
[1729043890554,6.4492,155.06,155.01,6.451]
[1729043890766,29.36215311,155.11,155.02,51.42573463]
[1729043891071,6.4479,155.09,155.04,6.4498]
[1729043891253,22.6273,155.11,155.02,51.42573463]
[1729043891254,6.4483,155.08,155.03,6.4502]
[1729043891862,6.4479,155.09,155.04,23.776884]
[1729043892074,6.4479,155.09,155.04,30.226684]
[1729043892764,6.4479,155.09,155.03,23.776884]
[1729043892943,6.4479,155.09,155.04,6.4498]
[1729043893270,6.4486,155.08,155.03,23.776884]
[1729043895370,20.0,155.1,155.03,23.776884]
[1729043895579,6.4487,155.07,155.03,23.776884]
[1729043896552,20.0,155.1,155.03,23.776884]
[1729043896759,6.4494,155.06,155.02,16.1263]
[1729043897077,6.4498,155.05,155.01,23.776884]
[1729043897292,6.4507,155.02,154.98,34.10535063]
[1729043897450,20.0,155.04,154.91,16.5533]
[1729043897652,106.325,155.04,154.92,6.4545]
[1729043897870,90.2,155.04,154.91,16.5533]
[1729043898070,90.2,155.04,154.9,17.76535063]
[1729043898071,6.4535,154.96,154.9,11.52255063]
[1729043898454,15.2946,154.99,154.87,16.5533]
[1729043898671,6.4541,154.94,154.87,16.5533]
[1729043899679,6.4546,154.93,154.88,23.776884]
[1729043899888,6.4546,154.93,154.87,23.0099]
[1729043899889,6.4546,154.93,154.87,6.4566]
[1729043900090,6.4554,154.91,154.86,16.1425]
[1729043900249,6.4554,154.91,154.86,22.5999]
[1729043900676,6.4557,154.9,154.84,6.4579]
[1729043900987,6.4566,154.88,154.82,22.6055]
[1729043901154,70.1,154.94,154.79,34.94000708]
[1729043901155,20.0,154.89,154.79,0.354609]
[1729043901483,6.458,154.85,154.79,6.814909]
[1729043901666,76.397,154.94,154.84,18.03209808]
[1729043901983,6.397,154.94,154.87,16.1421]
[1729043902180,15.2946,154.95,154.89,6.4558]
[1729043902379,6.4529,154.97,154.89,30.232684]
[1729043902581,6.4529,154.97,154.9,6.18992]
[1729043903264,6.397,154.98,154.89,23.776884]
[1729043903598,20.0,154.97,154.89,23.776884]
[1729043903756,20.0,154.97,154.88,23.776884]
[1729043903954,6.4545,154.93,154.88,23.776884]
[1729043904374,20.0,154.97,154.88,23.776884]
[1729043904568,20.0,154.97,154.87,22.5989]
[1729043904774,6.4545,154.93,154.87,22.5989]
[1729043904981,20.1,154.97,154.85,18.03209808]
[1729043905159,6.4554,154.91,154.84,23.776884]
[1729043905364,20.1,154.97,154.86,23.776884]
[1729043905569,6.4549,154.93,154.86,30.234184]
[1729043905970,6.455,154.92,154.86,30.234184]
[1729043906686,20.2,154.97,154.86,6.4573]
[1729043906861,43.976884,154.94,154.79,40.82819808]
[1729043907069,43.976884,154.94,154.79,56.97809808]
[1729043907369,6.4562,154.89,154.83,6.4586]
[1729043907886,36.2864,154.91,154.82,16.1477]
[1729043908185,6.4571,154.87,154.82,22.6067]
[1729043908592,6.2571,154.89,154.84,6.4582]
[1729043908790,12.7132,154.89,154.83,6.4586]
[1729043908968,6.2571,154.89,154.8,1.061239]
[1729043909169,6.4583,154.84,154.8,1.061239]
[1729043909372,20.0,154.88,154.8,1.061239]
[1729043909595,6.4578,154.85,154.8,1.061239]
[1729043910876,6.4578,154.85,154.8,7.521139]
[1729043913101,6.4578,154.85,154.8,1.061239]
[1729043913589,6.4591,154.82,154.8,1.061239]
[1729043914690,20.1,154.88,154.8,1.061239]
[1729043914896,6.4587,154.83,154.8,1.061239]
[1729043916186,20.1,154.88,154.8,1.061239]
[1729043916187,93.876884,154.87,154.8,1.061239]
[1729043916494,6.4592,154.82,154.8,1.061239]
[1729043917177,6.4587,154.83,154.8,1.061239]
[1729043917406,6.4583,154.84,154.8,1.061239]
[1729043918282,6.4589,154.83,154.8,1.061239]
[1729043921182,20.1,154.88,154.8,1.061239]
[1729043921388,6.4583,154.84,154.8,1.061239]
[1729043922699,6.4587,154.83,154.8,1.061239]
[1729043923983,6.4595,154.81,154.8,1.061239]
[1729043924195,6.4591,154.82,154.8,1.061239]
[1729043926215,16.1439,154.86,154.8,1.061239]
[1729043926781,6.4582,154.85,154.8,1.061239]
[1729043927085,6.4582,154.84,154.8,1.061239]
[1729043927404,6.4578,154.86,154.81,6.4594]
[1729043930608,6.4578,154.86,154.8,17.210139]
[1729043930818,6.4578,154.86,154.82,6.459]
[1729043931787,6.2571,154.89,154.82,6.459]
[1729043931986,6.4571,154.87,154.82,6.459]
[1729043932508,6.4566,154.88,154.83,6.4583]
[1729043933410,6.4562,154.89,154.85,6.4578]
[1729043935797,6.4562,154.89,154.83,23.776884]
[1729043936099,6.4562,154.89,154.84,6.4582]
[1729043941326,6.4558,154.9,154.85,6.4578]
[1729043941833,6.3892,154.93,154.87,6.4568]
[1729043941834,6.455,154.92,154.87,6.4568]
[1729043942205,6.455,154.92,154.84,49.74939808]
[1729043942206,6.455,154.92,154.86,16.1428]
[1729043942497,6.455,154.92,154.88,6.4566]
[1729043947495,12.8438,154.93,154.88,6.4566]
[1729043950325,6.4549,154.92,154.88,6.4566]
[1729043951828,6.4554,154.91,154.87,6.4569]
[1729043956600,6.4554,154.91,154.86,16.1428]
[1729043956923,6.4554,154.91,154.86,22.6002]
[1729043958528,6.4558,154.9,154.86,16.1428]
[1729043958704,20.0,154.92,154.84,6.4582]
[1729043960421,6.4566,154.88,154.84,6.4582]
[1729043963429,6.4541,154.94,154.9,6.4557]
[1729043963639,6.4541,154.94,154.89,6.4561]
[1729043965509,6.4917,154.97,154.88,23.776884]
[1729043965715,6.454,154.95,154.9,6.4556]
[1729043969040,6.454,154.95,154.91,6.4552]
[1729043969214,6.454,154.95,154.89,16.1398]
[1729043969414,20.0,154.96,154.89,16.1398]
[1729043970327,20.0,154.96,154.87,23.776884]
[1729043970517,6.455,154.92,154.88,6.4562]
[1729043973639,6.4544,154.94,154.89,6.4561]
[1729043974013,6.4545,154.93,154.89,6.4561]
[1729043974239,6.4539,154.95,154.9,6.4557]
[1729043974444,6.4541,154.94,154.9,6.4557]
[1729043975838,6.4535,154.96,154.91,6.455]
[1729043977118,6.4917,154.97,154.9,16.1387]
[1729043977324,6.4545,154.93,154.9,16.1387]
[1729043977821,6.4917,154.97,154.9,16.1387]
[1729043978145,6.4542,154.94,154.9,16.1387]
[1729043986128,6.4542,154.94,154.9,22.5943]
[1729043987846,6.4537,154.95,154.9,22.5943]
[1729043988856,6.4533,154.96,154.9,27.67754936]
[1729043989355,6.4917,154.97,154.9,27.67754936]
[1729043989558,28.86411617,155.01,154.92,27.67524936]
[1729043989888,22.1557,155.01,154.92,27.67524936]
[1729043990225,6.0273,155.01,154.94,17.99284936]
[1729043990559,6.4522,154.99,154.94,17.99284936]
[1729043990928,6.4522,154.99,154.95,6.4536]
[1729043991130,6.0273,155.01,154.94,11.53884936]
[1729043991340,12.4785,155.01,154.96,6.4529]
[1729043991543,16.0712,155.02,154.96,11.53884936]
[1729043991745,16.0712,155.02,154.97,6.4525]
[1729043992540,22.522,155.02,154.97,6.4525]
[1729043995670,6.4512,155.01,154.97,6.4525]
[1729043997077,16.0712,155.02,154.93,23.776884]
[1729043997268,6.4523,154.99,154.94,6.4537]
[1729043997749,16.0712,155.02,154.95,23.776884]
[1729043998062,6.4516,155.0,154.95,6.4534]
[1729043998243,6.4516,155.0,154.93,39.912684]
[1729043998445,6.4516,155.0,154.96,6.4532]
[1729044000056,16.0712,155.02,154.93,39.912684]
[1729044000253,6.4525,154.98,154.93,22.5901]
[1729044000640,6.4525,154.98,154.94,6.454]
[1729044001659,6.452,154.99,154.94,6.454]
[1729044002650,16.0712,155.02,154.95,16.1334]
[1729044002862,6.0273,155.05,154.96,11.53884936]
[1729044002863,6.4504,155.03,154.96,11.53884936]
[1729044003171,6.0273,155.05,154.99,6.4519]
[1729044003347,6.4502,155.04,154.99,6.4519]
[1729044003749,6.0273,155.05,154.98,27.66974936]
[1729044004058,6.0273,155.05,154.95,16.1338]
[1729044004272,6.4517,155.0,154.95,22.5874]
[1729044005457,20.0,155.03,154.92,27.67584936]
[1729044005648,6.4524,154.98,154.93,6.4544]
[1729044007481,22.523,155.0,154.95,6.4535]
[1729044007650,6.4511,155.02,154.94,27.67334936]
[1729044007854,6.4513,155.01,154.94,16.1345]
[1729044008070,6.4525,154.98,154.94,16.1345]
[1729044008373,6.4525,154.98,154.94,22.5885]
[1729044008572,20.0,155.02,154.91,16.1381]
[1729044008786,46.1321,154.97,154.86,16.2166]
[1729044009088,6.0273,154.95,154.85,18.00960536]
[1729044009253,30.0,154.97,154.89,18.10960536]
[1729044009454,6.0273,154.99,154.93,16.1354]
[1729044009657,16.0712,155.02,154.93,16.1354]
[1729044009879,6.4515,155.01,154.95,6.4536]
[1729044010252,6.4515,155.01,154.96,6.4531]
[1729044010772,16.0712,155.02,154.98,6.4524]
[1729044011075,12.4776,155.03,154.98,6.4524]
[1729044011247,12.4776,155.03,154.96,16.1323]
[1729044011248,6.0273,155.03,154.96,16.1323]
[1729044011454,6.4501,155.04,154.99,6.452]
[1729044012445,16.0712,155.06,154.99,6.452]
[1729044012650,26.4495,155.05,154.98,22.5821]
[1729044012850,26.4495,155.05,154.99,6.4518]
[1729044013087,20.0,155.05,154.99,6.4518]
[1729044013257,6.4499,155.04,154.99,6.4518]
[1729044013787,20.0,155.05,154.95,16.1341]
[1729044013955,6.4516,155.0,154.95,6.4536]
[1729044015065,6.4512,155.01,154.95,6.4536]
[1729044015579,36.2239,155.05,154.95,6.4536]
[1729044015580,6.4507,155.03,154.95,16.1337]
[1729044015783,6.4507,155.03,154.98,6.4522]
[1729044016367,16.0712,155.06,154.98,16.1305]
[1729044016687,6.4496,155.05,155.0,6.4512]
[1729044017061,6.4496,155.05,154.99,6.4519]
[1729044017986,16.0712,155.06,154.98,16.1305]
[1729044018289,23.776884,155.05,154.95,20.0]
[1729044018473,6.4504,155.03,154.97,16.1319]
[1729044019165,6.4499,155.04,154.99,6.4519]
[1729044019382,6.4499,155.04,154.97,16.1319]
[1729044019383,16.0712,155.06,154.97,16.1319]
[1729044019695,6.4507,155.03,154.98,6.4523]
[1729044023705,6.4508,155.02,154.97,22.5847]
[1729044023882,16.0712,155.06,154.97,22.5847]
[1729044023883,6.4512,155.01,154.97,16.1319]
[1729044026789,6.4504,155.03,154.98,6.4523]
[1729044028104,32.1941,155.06,154.99,6.4519]
[1729044028105,6.45,155.04,154.99,6.4519]
[1729044031310,16.0712,155.06,155.02,6.4505]
[1729044031608,6.4491,155.06,155.01,6.4508]
[1729044032613,6.0273,155.07,154.99,16.1292]
[1729044033612,6.0273,155.07,155.01,6.4511]
[1729044034316,6.4487,155.07,155.03,6.4503]
[1729044034934,6.4487,155.07,155.02,6.4507]
[1729044037400,20.3434739,155.09,155.01,16.127]
[1729044037604,6.4483,155.08,155.03,6.45]
[1729044037816,0.3434739,155.09,155.07,6.4486]
[1729044040125,0.3434739,155.09,155.05,6.4494]
[1729044041105,0.3434739,155.09,155.04,16.1245]
[1729044041419,6.4496,155.05,155.0,22.5796]
[1729044042026,6.4496,155.05,155.01,6.4511]
[1729044042401,6.4496,155.05,155.0,22.5796]
[1729044043506,6.4507,155.03,154.97,21.6392]
[1729044043720,6.4507,155.03,154.97,6.4524]
[1729044043922,43.776884,155.08,154.96,16.1327]
[1729044043923,86.1225,155.07,154.96,16.1327]
[1729044044117,6.4525,154.98,154.93,15.4155]
[1729044044318,6.4525,154.98,154.93,21.8699]
[1729044044624,6.4516,155.0,154.95,6.4534]
[1729044044830,6.4512,155.01,154.95,6.4534]
[1729044046395,6.6213,155.03,154.92,16.1364]
[1729044046396,6.4527,154.98,154.92,16.1364]
[1729044046619,6.4527,154.98,154.92,22.5911]
[1729044047898,6.4518,155.0,154.94,6.4541]
[1729044050529,6.4518,155.0,154.89,33.42510536]
[1729044050530,6.4541,154.95,154.89,6.4558]
[1729044050821,6.4541,154.94,154.89,6.4558]
[1729044052430,20.0,154.98,154.92,6.4548]
[1729044052713,6.4528,154.98,154.92,6.4548]
[1729044055730,20.0,154.98,154.91,16.1382]
[1729044055924,6.4512,155.01,154.95,6.4536]
[1729044056110,26.4516,155.0,154.95,6.4536]
[1729044057031,29.6973,155.03,154.98,6.4524]
[1729044057606,22.82924468,155.07,154.99,6.4519]
[1729044058215,6.4505,155.03,154.97,22.5838]
[1729044058534,20.0,155.06,154.97,16.1313]
[1729044059035,6.4508,155.02,154.97,22.5841]
[1729044060128,20.0,155.03,154.99,6.4519]
[1729044060635,6.4503,155.04,154.99,6.4519]
[1729044061332,6.4503,155.03,154.98,6.4523]
[1729044061512,70.0,155.06,154.93,16.1354]
[1729044061718,6.4517,155.0,154.95,6.4536]
[1729044062509,6.4511,155.02,154.96,6.4531]
[1729044062936,6.4513,155.01,154.96,6.4531]
[1729044067528,6.4513,155.01,154.94,23.776884]
[1729044067529,6.452,154.99,154.94,23.776884]
[1729044067733,6.4516,155.0,154.95,6.4536]
[1729044071738,20.0,155.01,154.93,16.1354]
[1729044071933,6.4529,154.97,154.93,22.5899]
[1729044072130,6.4524,154.99,154.93,22.5899]
[1729044072624,20.0,154.99,154.9,38.01]
[1729044072846,20.0,154.99,154.9,16.1391]
[1729044073351,6.4545,154.93,154.88,6.4565]
[1729044074231,6.4541,154.94,154.89,6.4561]
[1729044076455,6.4541,154.94,154.87,16.1423]
[1729044076456,6.4537,154.95,154.9,6.4556]
[1729044076624,28.9267,154.96,154.91,6.4553]
[1729044076828,22.9123,154.96,154.91,6.4553]
[1729044077747,20.0,154.99,154.89,16.1395]
[1729044077932,6.4529,154.97,154.92,6.4548]
[1729044078447,16.4589,155.0,154.93,23.776884]
[1729044078652,6.4507,155.03,154.93,41.78648936]
[1729044078870,22.4733,155.04,154.94,0.1]
[1729044079156,13.15251918,155.05,155.0,6.4515]
[1729044080220,13.15251918,155.05,155.01,0.354609]
[1729044081559,6.45,155.04,155.01,0.354609]
[1729044083356,13.15251918,155.05,155.01,0.354609]
[1729044083528,6.449,155.07,155.01,6.805609]
[1729044083961,20.0,155.07,155.01,6.805609]
[1729044084258,6.4491,155.06,155.01,6.805609]
[1729044084637,6.4491,155.06,155.01,0.354609]
[1729044086034,28.9218,155.08,155.01,24.131493]
[1729044086347,0.3434739,155.09,155.03,23.776884]
[1729044087351,0.3434739,155.09,155.05,6.4492]
[1729044089137,0.3434739,155.09,155.06,6.4488]
[1729044091959,0.3434739,155.09,155.08,30.225084]
[1729044094762,0.3434739,155.09,155.08,50.225084]
[1729044095139,0.3434739,155.09,155.06,6.449]
[1729044097836,0.3434739,155.09,155.05,16.1234]
[1729044098139,0.3434739,155.09,155.05,22.5729]
[1729044099441,0.3434739,155.09,155.06,6.4491]
[1729044099651,0.3434739,155.09,155.08,6.4482]
[1729044099854,0.3434739,155.09,155.06,23.776884]
[1729044100048,0.3434739,155.09,155.07,6.4486]
[1729044100559,0.3434739,155.09,155.08,6.4482]
[1729044101567,0.3434739,155.09,155.07,6.4486]
[1729044102060,0.3434739,155.09,155.05,16.1234]
[1729044102361,0.3434739,155.09,155.08,6.4482]
[1729044104165,0.3434739,155.09,155.08,30.225084]
[1729044104364,0.3434739,155.09,155.08,50.325084]
[1729044104564,0.3434739,155.09,155.08,65.906284]
[1729044105153,0.3434739,155.09,155.08,66.006284]
[1729044105452,0.3434739,155.09,155.08,65.906284]
[1729044107259,0.3434739,155.09,155.08,66.106284]
[1729044107669,0.3434739,155.09,155.08,66.006284]
[1729044108157,7.39e-05,155.09,155.08,66.106284]
[1729044111964,7.39e-05,155.09,155.08,65.906284]
[1729044112159,7.39e-05,155.09,155.08,66.006284]
[1729044112474,7.39e-05,155.09,155.08,65.906284]
[1729044113247,7.39e-05,155.09,155.08,66.006284]
[1729044114755,7.39e-05,155.09,155.07,6.4483]
[1729044115065,7.39e-05,155.09,155.05,16.1234]
[1729044115364,7.39e-05,155.09,155.07,6.4486]
[1729044115968,7.39e-05,155.09,155.05,16.1234]
[1729044116145,7.39e-05,155.09,155.05,22.5728]
[1729044116754,7.39e-05,155.09,155.06,6.449]
[1729044117863,7.39e-05,155.09,155.06,23.776884]
[1729044118255,7.39e-05,155.09,155.07,6.4486]
[1729044118452,7.39e-05,155.09,155.08,6.4482]
[1729044118648,7.39e-05,155.09,155.08,30.225084]
[1729044119343,7.39e-05,155.09,155.08,23.776884]
[1729044119549,7.39e-05,155.09,155.05,16.1234]
[1729044119746,7.39e-05,155.09,155.06,23.776884]
[1729044120152,7.39e-05,155.09,155.06,30.225784]
[1729044120642,7.39e-05,155.09,155.05,16.1234]
[1729044120844,6.4479739,155.09,155.05,16.1234]
[1729044121248,6.4486,155.08,155.03,6.4503]
[1729044121462,6.4482739,155.09,155.04,6.4498]
[1729044121861,7.39e-05,155.09,155.05,6.4494]
[1729044122275,7.39e-05,155.09,155.03,16.1251]
[1729044122477,7.39e-05,155.09,155.06,6.449]
[1729044123171,7.39e-05,155.09,155.07,6.4486]
[1729044123370,6.4479739,155.09,155.05,16.1231]
[1729044123672,6.4482,155.08,155.03,6.4499]
[1729044123981,7.39e-05,155.09,155.01,0.354609]
[1729044123982,6.4503,155.03,155.01,0.354609]
[1729044126383,6.4507,155.02,155.01,0.354609]
[1729044127675,6.4524,154.98,154.92,6.4545]
[1729044127878,6.4532,154.96,154.91,16.1376]
[1729044128070,6.4538,154.95,154.87,16.1417]
[1729044128257,6.4534,154.96,154.9,6.4556]
[1729044130583,15.9414,154.95,154.9,6.4556]
[1729044131180,15.9414,154.95,154.88,6.4564]
[1729044131181,6.4541,154.94,154.88,6.4564]
[1729044132500,15.9414,154.95,154.87,16.1417]
[1729044132501,6.4547,154.93,154.87,22.5987]
[1729044132851,6.455,154.92,154.87,16.1417]
[1729044134781,15.9414,154.95,154.87,22.5984]
[1729044134782,6.4546,154.93,154.87,22.5984]
[1729044135657,15.9414,154.95,154.88,23.776884]
[1729044135876,15.9414,154.95,154.92,6.4548]
[1729044136079,15.9414,154.95,154.92,6.4549]
[1729044136268,15.9414,154.95,154.91,6.4553]
[1729044137191,15.9414,154.95,154.9,16.1394]
[1729044137883,15.9414,154.95,154.9,22.5949]
[1729044138873,15.9414,154.95,154.87,16.1424]
[1729044139383,6.4541,154.94,154.88,6.4562]
[1729044140165,15.9414,154.95,154.89,6.4557]
[1729044140380,15.9414,154.95,154.91,6.4553]
[1729044142688,15.9414,154.95,154.89,0.35461]
[1729044142689,6.4549,154.93,154.89,0.35461]
[1729044142988,6.455,154.92,154.89,0.35461]
[1729044143593,6.4545,154.93,154.89,0.35461]
[1729044143892,20.0,154.94,154.89,0.35461]
[1729044144184,22.3953,154.95,154.89,0.35461]
[1729044145594,22.3953,154.95,154.9,6.4557]
[1729044146991,22.3953,154.95,154.91,6.4553]
[1729044148093,22.3953,154.95,154.9,6.4557]
[1729044149176,15.9414,154.95,154.89,0.35461]
[1729044149385,15.9414,154.95,154.92,6.4549]
[1729044150580,15.9414,154.95,154.9,16.1384]
[1729044150783,22.3951,154.95,154.9,22.594]
[1729044155306,15.9414,154.95,154.9,16.1384]
[1729044155494,15.9414,154.95,154.92,6.4547]
[1729044155808,15.9414,154.95,154.91,6.4552]
[1729044157720,6.4519,155.0,154.95,6.4536]
[1729044157886,20.0,155.0,154.91,23.776884]
[1729044158205,20.0,155.0,154.91,16.1375]
[1729044158804,6.4533,154.96,154.92,6.4549]
[1729044159109,6.4533,154.96,154.91,22.5927]
[1729044159691,6.4533,154.96,154.92,6.4549]
[1729044160091,6.4529,154.97,154.92,6.4549]